bitfinex/quotes_SOLUSD_20250425
["timestamp","ask_amount","ask_price","bid_price","bid_amount"]
[1745561496194,82.7,152.24,152.22,0.14216157]
[1745561496498,82.7,152.24,152.22,7.24885911]
[1745561496806,82.7,152.24,152.22,0.14216157]
[1745561497588,84.3423467,152.24,152.22,0.14216157]
[1745561497794,82.7,152.24,152.22,0.14216157]
[1745561499203,8.74902684,152.25,152.22,0.14216157]
[1745561502505,7.10669754,152.24,152.22,0.14216157]
[1745561502711,1.64245042,152.23,152.22,0.14216157]
[1745561504999,6.4005,152.27,152.22,0.14216157]
[1745561505000,91.44914309,152.25,152.22,0.14216157]
[1745561506304,84.34244555,152.25,152.22,0.14216157]
[1745561506503,91.44914309,152.25,152.22,0.14216157]
[1745561507213,84.3423571,152.27,152.24,7.24885911]
[1745561507389,84.3423571,152.27,152.24,7.10669754]
[1745561507592,91.44905464,152.27,152.23,7.24885911]
[1745561508226,84.3423571,152.27,152.25,0.14216157]
[1745561509936,91.44905464,152.27,152.25,0.14216157]
[1745561510535,91.44905464,152.27,152.23,0.14216157]
[1745561510833,7.10669754,152.26,152.23,0.14216157]
[1745561512435,1.6421768,152.25,152.23,0.14216157]
[1745561512615,8.74887434,152.25,152.23,0.14216157]
[1745561516150,1.6421768,152.25,152.23,0.14216157]
[1745561520745,1.6421768,152.25,152.23,7.24885911]
[1745561520933,1.64219169,152.25,152.23,7.24885911]
[1745561521128,1.64219169,152.25,152.23,0.14216157]
[1745561521927,1.64219169,152.25,152.23,7.24885911]
[1745561522644,1.64219169,152.25,152.23,0.14216157]
[1745561523048,82.7,152.26,152.25,0.14216157]
[1745561524229,1.64204441,152.28,152.25,7.24885911]
[1745561524535,1.64204441,152.28,152.25,0.14216157]
[1745561525048,8.74874195,152.28,152.25,0.14216157]
[1745561525355,7.10669754,152.27,152.22,25.89850797]
[1745561525649,1.64209232,152.26,152.22,25.89850797]
[1745561525857,1.64209232,152.26,152.24,0.14216157]
[1745561526532,1.64213627,152.27,152.24,0.14216157]
[1745561526850,8.74883381,152.27,152.24,0.14216157]
[1745561527765,1.64219456,152.28,152.24,0.14216157]
[1745561528050,82.7,152.29,152.27,7.24885911]
[1745561528258,82.7,152.29,152.28,7.24885911]
[1745561528553,0.03,152.3,152.28,0.14216157]
[1745561529950,0.03,152.3,152.29,0.14216157]
[1745561532031,0.03,152.3,152.28,0.14216157]
[1745561532232,0.03,152.3,152.28,7.24885911]
[1745561533637,0.03,152.3,152.29,7.24885911]
[1745561536172,8.77818821,152.3,152.25,13.18]
[1745561536368,8.77818821,152.3,152.26,7.10669754]
[1745561536746,1.67149067,152.3,152.27,25.89850797]
[1745561536947,0.03,152.3,152.28,7.10669754]
[1745561537954,0.03,152.3,152.29,0.14216157]
[1745561538160,0.03,152.3,152.29,25.89850797]
[1745561539859,0.03,152.3,152.29,32.4649273]
[1745561542470,0.03,152.3,152.29,25.35822976]
[1745561542967,0.03,152.3,152.29,32.4649273]
[1745561544548,0.03,152.3,152.29,25.89850797]
[1745561548980,0.03,152.3,152.29,18.79181043]
[1745561549643,0.03,152.3,152.28,7.10669754]
[1745561550565,0.03,152.3,152.29,7.24885911]
[1745561551057,0.03,152.3,152.29,25.89850797]
[1745561553276,0.03,152.3,152.29,32.4649273]
[1745561558878,0.03,152.3,152.29,25.89850797]
[1745561559078,0.03,152.3,152.29,32.4649273]
[1745561559273,0.03,152.3,152.28,20.28669754]
[1745561562281,0.03,152.3,152.28,13.67351758]
[1745561563165,0.03,152.3,152.28,7.10669754]
[1745561564487,0.03,152.3,152.28,18.79181043]
[1745561564664,0.03,152.3,152.28,25.89850797]
[1745561570887,0.03,152.3,152.28,18.79181043]
[1745561571491,0.03,152.3,152.28,25.89850797]
[1745561571687,0.03,152.3,152.29,7.10669754]
[1745561571894,0.03,152.3,152.29,25.89850797]
[1745561572673,0.03,152.3,152.29,27.42740797]
[1745561573072,0.03,152.3,152.29,33.9938273]
[1745561573984,0.03,152.31,152.3,18.79181043]
[1745561574187,0.03,152.31,152.3,93.54529813]
[1745561574398,0.03,152.32,152.3,93.54529813]
[1745561574707,0.03,152.32,152.31,54.32529813]
[1745561575000,0.03,152.32,152.31,60.89085521]
[1745561580407,0.03,152.32,152.31,25.89850797]
[1745561580731,0.03,152.32,152.31,54.32529813]
[1745561580889,0.03,152.33,152.32,18.79181043]
[1745561581224,0.03,152.33,152.32,54.32529813]
[1745561581588,0.03,152.33,152.32,25.89850797]
[1745561583102,0.03,152.33,152.32,25.7563464]
[1745561583476,0.03,152.33,152.32,25.89850797]
[1745561583681,0.03,152.33,152.32,7.10669754]
[1745561584577,0.03,152.33,152.3,13.22]
[1745561584779,0.03,152.33,152.29,25.7563464]
[1745561584780,7.13669754,152.33,152.29,25.7563464]
[1745561585010,8.77816795,152.33,152.29,25.7563464]
[1745561587127,1.67147041,152.33,152.3,7.10669754]
[1745561587710,8.77816795,152.33,152.29,18.79181043]
[1745561587925,1.67147041,152.33,152.29,18.79181043]
[1745561588128,8.77816795,152.33,152.29,18.79181043]
[1745561588320,1.67147041,152.33,152.29,7.24885911]
[1745561588927,8.77816795,152.33,152.29,7.24885911]
[1745561589122,1.67147041,152.33,152.29,7.24885911]
[1745561589327,8.77816795,152.33,152.29,7.24885911]
[1745561589926,1.67147041,152.33,152.29,7.24885911]
[1745561590303,8.77816795,152.33,152.29,7.24885911]
[1745561591412,1.67147041,152.33,152.29,7.24885911]
[1745561591613,8.77816795,152.33,152.29,7.24885911]
[1745561592125,0.03,152.33,152.29,7.24885911]
[1745561593342,0.03,152.33,152.3,7.10669754]
[1745561593513,0.03,152.33,152.29,7.24885911]
[1745561593710,7.13669754,152.33,152.29,7.24885911]
[1745561594635,7.13669754,152.33,152.29,0.14216157]
[1745561595622,8.74801969,152.32,152.28,0.14216157]
[1745561595807,7.10669754,152.31,152.28,0.14216157]
[1745561596119,7.10669754,152.31,152.28,18.64964886]
[1745561597007,7.10669754,152.32,152.28,18.64964886]
[1745561599143,84.37144998,152.33,152.28,18.64964886]
[1745561599305,7.10669754,152.32,152.28,18.64964886]
[1745561600445,7.10669754,152.29,152.23,8.91715728]
[1745561600648,7.10669754,152.26,152.24,18.64964886]
[1745561600938,8.74863436,152.25,152.22,0.063]
[1745561601159,7.10669754,152.23,152.22,0.063]
[1745561601660,8.74920485,152.23,152.22,0.063]
[1745561602011,82.7,152.24,152.22,0.063]
[1745561602226,8.74903612,152.23,152.22,0.063]
[1745561604253,15.21823612,152.23,152.22,0.063]
[1745561604849,97.91823612,152.23,152.22,0.063]
[1745561610039,91.44903612,152.23,152.22,0.063]
[1745561618681,84.34233858,152.23,152.22,0.063]
[1745561618965,91.44903612,152.23,152.22,0.063]
[1745561622267,8.74903612,152.23,152.22,0.063]
[1745561636969,26.0,152.2,152.16,0.063]
[1745561637169,7.10669754,152.17,152.16,0.063]
[1745561640284,61.5334877,152.17,152.16,0.063]
[1745561640492,33.10669754,152.17,152.16,0.063]
[1745561652704,26.0,152.17,152.16,0.063]
[1745561652918,34.74982139,152.19,152.16,0.063]
[1745561653084,8.74982139,152.19,152.16,0.063]
[1745561653284,7.10669754,152.18,152.16,0.063]
[1745561653514,1.64308688,152.17,152.16,0.063]
[1745561654520,8.74978442,152.17,152.16,0.063]
[1745561654682,1.64308688,152.17,152.16,0.063]
[1745561655002,8.74978442,152.17,152.16,0.063]
[1745561657181,34.74979711,152.19,152.16,0.063]
[1745561657604,117.44979711,152.19,152.16,0.063]
[1745561657986,117.44979711,152.19,152.16,7.31185911]
[1745561657987,1.64309957,152.19,152.16,7.31185911]
[1745561658187,8.74941241,152.21,152.16,7.31185911]
[1745561659084,7.10669754,152.2,152.16,7.31185911]
[1745561660729,7.10669754,152.19,152.16,0.20516157]
[1745561661428,7.10669754,152.19,152.16,18.85481043]
[1745561661800,7.10669754,152.17,152.16,0.063]
[1745561662344,35.5334877,152.17,152.16,0.063]
[1745561663338,7.10669754,152.17,152.16,0.063]
[1745561673642,34.7495365,152.18,152.16,0.063]
[1745561674050,7.10669754,152.18,152.16,0.063]
[1745561674554,7.10669754,152.17,152.16,0.063]
[1745561677775,27.64296943,152.2,152.16,0.063]
[1745561677972,7.10669754,152.18,152.16,0.063]
[1745561678177,82.7,152.19,152.16,0.20516157]
[1745561683563,82.7,152.19,152.16,7.31185911]
[1745561683865,8.74945521,152.2,152.16,7.31185911]
[1745561683866,1.64275767,152.2,152.18,0.14216157]
[1745561684053,33.10669754,152.22,152.18,7.24885911]
[1745561684642,26.0,152.22,152.18,7.24885911]
[1745561684846,26.0,152.22,152.19,7.10669754]
[1745561685350,26.0,152.22,152.18,7.24885911]
[1745561686377,33.10669754,152.22,152.18,0.14216157]
[1745561687774,7.10669754,152.21,152.18,0.14216157]
[1745561690275,7.10669754,152.2,152.18,0.14216157]
[1745561690782,26.0,152.22,152.18,0.14216157]
[1745561690961,7.10669754,152.2,152.18,0.14216157]
[1745561693155,7.10669754,152.21,152.18,0.14216157]
[1745561694583,117.44945329,152.23,152.19,7.10669754]
[1745561694768,82.7,152.23,152.2,7.10669754]
[1745561695087,7.10669754,152.25,152.21,18.79181043]
[1745561695387,33.10669754,152.26,152.21,25.89850797]
[1745561695762,7.10669754,152.25,152.21,25.89850797]
[1745561696674,8.74886406,152.25,152.21,18.79181043]
[1745561697186,7.10669754,152.25,152.21,18.79181043]
[1745561697393,7.10669754,152.25,152.21,32.46833286]
[1745561698485,7.10669754,152.26,152.22,7.10669754]
[1745561701239,82.7,152.27,152.24,7.10669754]
[1745561701502,0.03,152.28,152.25,7.24885911]
[1745561701904,0.03,152.28,152.25,18.79181043]
[1745561701905,7.13669754,152.28,152.25,18.79181043]
[1745561704396,0.03,152.28,152.25,18.79181043]
[1745561704678,0.03,152.28,152.27,13.81614091]
[1745561711291,7.13669754,152.28,152.22,7.10669754]
[1745561711492,7.10669754,152.26,152.22,7.10669754]
[1745561711804,7.10669754,152.25,152.21,20.10669754]
[1745561711998,7.10669754,152.25,152.22,18.64964886]
[1745561712208,7.10669754,152.25,152.23,0.14216157]
[1745561712901,1.64209942,152.27,152.23,0.14216157]
[1745561713104,8.74879696,152.27,152.22,32.32575128]
[1745561713402,7.10669754,152.26,152.23,0.14216157]
[1745561716712,8.74879696,152.27,152.23,0.14216157]
[1745561717714,7.10669754,152.26,152.23,0.14216157]
[1745561720784,7.10669754,152.26,152.22,18.64964886]
[1745561720985,8.74876985,152.25,152.22,18.64964886]
[1745561721186,7.10669754,152.25,152.22,18.64964886]
[1745561721386,7.10669754,152.26,152.22,18.64964886]
[1745561722805,7.10669754,152.25,152.22,18.64964886]
[1745561723014,1.64221292,152.26,152.22,18.64964886]
[1745561723191,8.74891046,152.26,152.22,18.64964886]
[1745561723394,7.10669754,152.25,152.22,18.64964886]
[1745561724317,1.64221292,152.26,152.22,18.64964886]
[1745561724492,7.10669754,152.25,152.22,18.64964886]
[1745561726716,8.74891046,152.26,152.22,18.64964886]
[1745561727714,8.74891046,152.26,152.22,25.7563464]
[1745561727919,1.64221292,152.26,152.22,25.7563464]
[1745561728221,8.74891046,152.26,152.22,25.7563464]
[1745561728604,8.74891046,152.26,152.22,32.32573905]
[1745561728991,8.74891046,152.26,152.22,25.21904151]
[1745561730610,1.64221292,152.26,152.22,25.21904151]
[1745561730813,82.7,152.27,152.25,7.10669754]
[1745561730995,0.03,152.28,152.26,25.89850797]
[1745561731202,0.03,152.28,152.27,25.89850797]
[1745561733210,0.03,152.28,152.27,32.46578977]
[1745561734216,0.03,152.28,152.27,25.89850797]
[1745561736507,0.03,152.28,152.23,0.14216157]
[1745561736721,7.10669754,152.27,152.25,18.64964886]
[1745561736901,8.74856539,152.26,152.22,12.94]
[1745561737101,7.10669754,152.25,152.22,12.94]
[1745561737503,7.10669754,152.26,152.22,20.04669754]
[1745561737902,7.10669754,152.25,152.22,12.94]
[1745561738127,7.10669754,152.24,152.22,12.94]
[1745561738316,7.10669754,152.24,152.21,18.64964886]
[1745561738317,7.10669754,152.24,152.19,13.67727464]
[1745561738524,7.10669754,152.22,152.19,18.64964886]
[1745561738715,7.10669754,152.23,152.2,0.14216157]
[1745561743303,8.74906128,152.24,152.2,0.14216157]
[1745561747224,7.10669754,152.23,152.2,0.14216157]
[1745561747619,8.74906128,152.24,152.2,7.24885911]
[1745561747817,82.7,152.25,152.22,7.24885911]
[1745561748130,82.7,152.25,152.23,7.10669754]
[1745561748332,91.4787956,152.28,152.23,7.10669754]
[1745561749220,91.4787956,152.28,152.24,7.10669754]
[1745561749614,91.4787956,152.28,152.23,13.67562875]
[1745561750023,91.4787956,152.28,152.23,7.10669754]
[1745561750024,7.10669754,152.27,152.23,7.10669754]
[1745561750235,7.10669754,152.25,152.19,0.14216157]
[1745561750539,7.10669754,152.22,152.19,18.64964886]
[1745561750921,7.10669754,152.2,152.16,18.71264886]
[1745561751726,7.10669754,152.19,152.16,18.71264886]
[1745561752131,7.10669754,152.17,152.16,0.063]
[1745561755456,37.06252185,152.17,152.16,0.063]
[1745561757219,11.06252185,152.17,152.16,0.063]
[1745561764445,22.1250437,152.17,152.16,0.063]
[1745561764767,35.0650437,152.17,152.16,0.063]
[1745561764941,35.0650437,152.17,152.15,0.063]
[1745561765142,23.76882922,152.16,152.15,0.063]
[1745561765853,28.99123339,152.16,152.15,0.063]
[1745561766754,23.76882922,152.16,152.15,0.063]
[1745561768038,29.09037377,152.16,152.15,0.063]
[1745561768464,35.29737377,152.16,152.15,0.063]
[1745561771768,35.29737377,152.16,152.08,0.063]
[1745561771769,26.0,152.13,152.08,0.063]
[1745561771969,37.06252185,152.1,152.08,0.063]
[1745561775260,33.08649618,152.1,152.08,0.063]
[1745561776545,26.0,152.1,152.08,0.063]
[1745561776959,34.73044192,152.1,152.08,0.063]
[1745561777946,33.08649618,152.1,152.08,0.063]
[1745561780465,26.0,152.1,152.08,0.063]
[1745561782069,33.08649618,152.13,152.08,7.29165775]
[1745561782274,1.64362324,152.12,152.08,25.94130661]
[1745561783371,1.64362324,152.12,152.09,7.14949618]
[1745561790179,1.64362324,152.12,152.09,0.063]
[1745561790379,8.73011942,152.12,152.09,0.063]
[1745561790680,7.08649618,152.11,152.09,0.063]
[1745561792483,1.64362324,152.12,152.09,0.063]
[1745561792484,8.73011942,152.12,152.09,0.063]
[1745561793475,7.08649618,152.11,152.09,0.063]
[1745561794368,8.73025608,152.1,152.09,0.063]
[1745561796286,34.73025608,152.1,152.09,0.063]
[1745561797154,63.0762408,152.1,152.08,0.063]
[1745561797471,32.0375,152.08,152.07,0.063]
[1745561797662,69.11454692,152.08,152.07,0.063]
[1745561798570,34.7310622,152.08,152.07,0.063]
[1745561798881,33.08649618,152.08,152.07,0.063]
[1745561806301,7.08649618,152.09,152.07,0.063]
[1745561806518,8.73052787,152.09,152.07,0.063]
[1745561807572,34.73052787,152.09,152.07,0.063]
[1745561809093,14.5157,152.12,152.07,7.14949618]
[1745561809094,27.64403539,152.11,152.07,7.14949618]
[1745561809480,1.64381773,152.15,152.08,7.08649618]
[1745561809697,7.08649618,152.13,152.09,7.08649618]
[1745561809879,1.64365024,152.12,152.08,7.08649618]
[1745561810901,1.64365024,152.12,152.08,13.6619437]
[1745561811319,1.64365024,152.12,152.08,7.08649618]
[1745561812819,1.64365024,152.12,152.09,7.08649618]
[1745561820721,8.73014642,152.12,152.08,25.87830661]
[1745561821420,7.08649618,152.11,152.07,25.79914504]
[1745561821731,8.73014642,152.12,152.07,32.37506225]
[1745561822023,1.64365024,152.12,152.08,7.08649618]
[1745561822604,1.64365024,152.12,152.09,7.08649618]
[1745561824236,1.64365024,152.12,152.09,13.66151318]
[1745561824735,1.64361581,152.13,152.09,7.08649618]
[1745561824923,1.64361621,152.16,152.12,7.08649618]
[1745561825101,8.73011239,152.16,152.12,7.08649618]
[1745561825300,1.64361621,152.16,152.12,7.08649618]
[1745561825527,8.73011239,152.16,152.12,7.08649618]
[1745561825828,7.08649618,152.15,152.1,7.08649618]
[1745561826033,8.73006653,152.14,152.1,7.08649618]
[1745561826729,1.64357035,152.14,152.1,7.08649618]
[1745561828838,1.64357035,152.14,152.11,7.08649618]
[1745561829058,1.64347312,152.15,152.12,7.08649618]
[1745561829341,1.64347312,152.15,152.11,7.08649618]
[1745561830721,8.7299693,152.15,152.11,7.08649618]
[1745561831208,8.7299693,152.15,152.1,6.57449295]
[1745561831406,8.7299693,152.15,152.1,7.08649618]
[1745561832634,8.7299693,152.15,152.1,13.66110501]
[1745561832810,1.64347312,152.15,152.12,7.08649618]
[1745561833016,1.64329666,152.16,152.12,7.08649618]
[1745561833633,1.64329666,152.16,152.11,18.79181043]
[1745561833634,1.64329666,152.16,152.13,7.08649618]
[1745561836335,1.64329666,152.16,152.12,7.08649618]
[1745561839653,1.64329666,152.16,152.13,7.08649618]
[1745561840023,1.64329635,152.17,152.15,7.08649618]
[1745561840224,1.67310389,152.18,152.15,7.08649618]
[1745561841046,1.67310389,152.18,152.14,7.08649618]
[1745561841580,1.67310389,152.18,152.15,13.65894727]
[1745561841856,0.03,152.18,152.16,7.08649618]
[1745561842052,0.03,152.18,152.17,7.08649618]
[1745561842437,0.03,152.18,152.16,7.08649618]
[1745561844128,0.03,152.18,152.16,13.6585006]
[1745561844758,0.03,152.18,152.17,7.08649618]
[1745561844939,0.03,152.18,152.17,25.87830661]
[1745561846842,0.03,152.18,152.17,32.44990416]
[1745561860746,22.73251652,152.23,152.18,18.79181043]
[1745561860953,22.73251652,152.23,152.19,7.08649618]
[1745561862502,29.8190127,152.23,152.16,0.14216157]
[1745561862653,7.08649618,152.21,152.16,18.79181043]
[1745561862859,1.64282799,152.2,152.16,32.45030019]
[1745561864177,1.64282799,152.2,152.17,7.08649618]
[1745561864675,1.64275946,152.21,152.17,7.08649618]
[1745561865566,1.64275946,152.21,152.17,13.65804548]
[1745561866272,7.08649618,152.2,152.15,12.86]
[1745561866469,1.64295906,152.2,152.17,7.08649618]
[1745561866667,8.72929308,152.24,152.19,7.08649618]
[1745561866874,27.6427969,152.24,152.2,7.08649618]
[1745561867071,34.72929308,152.24,152.19,7.08649618]
[1745561868875,7.08649618,152.23,152.19,7.08649618]
[1745561869079,1.64259193,152.22,152.19,7.08649618]
[1745561873096,1.64259193,152.22,152.18,32.30729635]
[1745561874780,1.64259193,152.22,152.19,7.08649618]
[1745561877393,1.64259193,152.22,152.18,32.30705669]
[1745561879895,1.64259193,152.22,152.19,7.08649618]
[1745561880076,1.64259193,152.22,152.18,25.22056051]
[1745561880280,1.64259193,152.22,152.19,7.08649618]
[1745561881293,1.6425437,152.23,152.19,13.65718803]
[1745561881491,1.6425437,152.23,152.19,7.08649618]
[1745561882278,8.72903988,152.23,152.18,32.30715195]
[1745561882699,7.08649618,152.2,152.16,12.84]
[1745561882879,8.72944007,152.19,152.14,7.08649618]
[1745561883391,7.08649618,152.18,152.14,18.64964886]
[1745561883707,1.64306286,152.2,152.15,7.08649618]
[1745561883909,7.08649618,152.19,152.15,7.08649618]
[1745561884105,1.64299085,152.18,152.15,7.08649618]
[1745561884602,8.72946388,152.19,152.15,7.08649618]
[1745561885275,1.6429677,152.19,152.15,13.65891547]
[1745561886037,1.64293601,152.2,152.17,7.08649618]
[1745561886708,1.64293601,152.2,152.16,13.65843552]
[1745561887030,8.72943219,152.2,152.15,13.65892986]
[1745561887819,7.08649618,152.19,152.15,6.57243368]
[1745561888018,7.08649618,152.19,152.15,13.65892986]
[1745561889430,8.72943219,152.2,152.15,13.65892986]
[1745561889920,26.0,152.21,152.18,7.08649618]
[1745561890115,27.64271919,152.21,152.17,7.08649618]
[1745561890314,34.72921537,152.21,152.17,7.08649618]
[1745561890931,34.72921537,152.21,152.16,7.22865775]
[1745561893941,7.08649618,152.2,152.16,7.22865775]
[1745561894311,34.72921537,152.21,152.16,7.22865775]
[1745561896042,34.72921537,152.21,152.15,6.57243368]
[1745561896043,7.08649618,152.18,152.14,7.22865775]
[1745561896919,7.08649618,152.19,152.14,13.80148185]
[1745561897227,1.64298756,152.18,152.14,7.22865775]
[1745561897534,8.72948374,152.18,152.14,0.14216157]
[1745561897911,7.08649618,152.16,152.12,13.04516157]
[1745561898246,7.08649618,152.13,152.12,0.063]
[1745561903640,8.73031663,152.13,152.12,0.063]
[1745561908656,7.08649618,152.13,152.12,0.063]
[1745561910962,7.08649618,152.14,152.12,0.063]
[1745561912158,7.08649618,152.15,152.12,0.063]
[1745561912363,1.64346385,152.14,152.12,0.063]
[1745561913257,8.72996003,152.14,152.12,0.063]
[1745561913752,7.08649618,152.13,152.12,0.063]
[1745561913961,8.73002533,152.13,152.12,0.063]
[1745561917358,7.08649618,152.13,152.12,0.063]
[1745561917661,8.73029857,152.14,152.12,0.063]
[1745561918174,7.08649618,152.13,152.12,0.063]
[1745561919250,8.73029857,152.14,152.12,0.063]
[1745561919651,1.64380239,152.14,152.12,0.063]
[1745561920868,8.73029857,152.14,152.12,0.063]
[1745561921370,1.64380239,152.14,152.12,0.063]
[1745561922356,8.73029857,152.14,152.12,0.063]
[1745561923180,1.64380239,152.14,152.12,0.063]
[1745561925169,1.64333523,152.15,152.12,7.14949618]
[1745561926068,1.64329105,152.16,152.13,7.08649618]
[1745561926273,1.64329105,152.17,152.14,7.08649618]
[1745561926461,1.64314685,152.18,152.14,7.08649618]
[1745561928174,8.72964303,152.18,152.14,7.08649618]
[1745561929276,7.08649618,152.17,152.12,7.14949618]
[1745561929478,1.64320927,152.16,152.12,7.14949618]
[1745561929673,1.64320927,152.16,152.13,7.08649618]
[1745561930056,1.64320927,152.16,152.12,25.79914504]
[1745561930392,1.64320927,152.16,152.12,7.14949618]
[1745561930961,1.64320927,152.16,152.13,7.08649618]
[1745561936884,1.64320927,152.16,152.12,13.72324941]
[1745561938494,1.64320927,152.16,152.12,7.14949618]
[1745561938659,8.72970545,152.16,152.12,0.063]
[1745561939580,1.64320927,152.16,152.12,13.72322016]
[1745561940565,1.64326581,152.16,152.13,7.08649618]
[1745561941273,33.25877557,152.19,152.15,7.08649618]
[1745561941456,7.25877557,152.19,152.13,18.79181043]
[1745561941768,15.98818603,152.19,152.15,7.08649618]
[1745561942783,8.90168985,152.19,152.15,13.65888615]
[1745561943088,8.90168985,152.19,152.15,7.08649618]
[1745561943384,8.90168985,152.19,152.16,7.08649618]
[1745561943589,7.25877557,152.19,152.16,7.08649618]
[1745561943766,7.25877557,152.19,152.15,7.08649618]
[1745561945466,1.6429451,152.18,152.15,7.08649618]
[1745561945666,8.9017331,152.19,152.14,6.57270487]
[1745561945866,8.9017331,152.19,152.15,7.08649618]
[1745561947294,15.98822928,152.19,152.15,7.08649618]
[1745561948168,15.98822928,152.19,152.14,7.08649618]
[1745561949899,7.08649618,152.18,152.14,7.08649618]
[1745561950084,7.08649618,152.16,152.12,19.98949618]
[1745561950687,8.72960389,152.17,152.12,19.98949618]
[1745561950899,8.72960389,152.17,152.13,7.08649618]
[1745561951105,1.64310771,152.17,152.13,7.08649618]
[1745561953683,1.64314464,152.18,152.14,7.08649618]
[1745561954210,8.72964082,152.18,152.14,7.08649618]
[1745561954515,7.08649618,152.17,152.13,6.57331661]
[1745561954808,7.08649618,152.17,152.13,13.65981279]
[1745561955206,8.72964082,152.18,152.14,7.08649618]
[1745561956119,8.72964082,152.18,152.13,13.65981279]
[1745561956286,7.08649618,152.17,152.13,7.08649618]
[1745561956486,7.08649618,152.17,152.13,18.79181043]
[1745561956701,8.72959393,152.16,152.12,12.903]
[1745561956905,8.72959393,152.16,152.12,0.063]
[1745561957210,7.08649618,152.13,152.12,0.063]
[1745561961919,8.73013872,152.14,152.12,0.063]
[1745561962123,7.08649618,152.15,152.12,0.063]
[1745561968738,8.7298085,152.14,152.12,0.063]
[1745561969814,7.08649618,152.13,152.12,0.063]
[1745561970011,1.64356778,152.13,152.12,0.063]
[1745561972835,7.08649618,152.15,152.12,0.063]
[1745561973036,1.64341157,152.14,152.12,0.063]
[1745561975923,1.64346822,152.15,152.12,0.063]
[1745561977519,1.64333134,152.16,152.13,7.08649618]
[1745561978342,1.64319734,152.17,152.14,7.08649618]
[1745561978515,33.25877557,152.19,152.15,7.08649618]
[1745561978516,1.64311079,152.18,152.15,7.08649618]
[1745561978712,7.25877557,152.19,152.17,7.08649618]
[1745561979221,1.64280254,152.21,152.18,7.08649618]
[1745561982442,8.72929872,152.21,152.17,7.08649618]
[1745561982744,8.72929872,152.21,152.16,7.08649618]
[1745561983329,7.08649618,152.2,152.16,7.08649618]
[1745561983527,8.72936189,152.2,152.16,7.08649618]
[1745561984734,1.64286274,152.19,152.16,7.08649618]
[1745561987255,26.0,152.22,152.15,18.64964886]
[1745561987256,8.72935818,152.21,152.17,7.08649618]
[1745561995668,33.08649618,152.18,152.12,0.063]
[1745561995864,7.08649618,152.16,152.12,7.14949618]
[1745561996040,7.08649618,152.16,152.12,0.063]
[1745561996367,8.72965857,152.17,152.12,0.063]
[1745561996664,8.72965857,152.17,152.12,0.20516157]
[1745561996969,8.72965857,152.17,152.12,7.29165775]
[1745561997666,7.08649618,152.15,152.12,0.063]
[1745561998647,1.64335533,152.14,152.12,0.063]
[1745561999352,8.72985151,152.14,152.12,0.063]
[1745562003269,1.64335533,152.14,152.12,0.063]
[1745562003569,7.08649618,152.14,152.12,0.063]
[1745562003744,1.64355964,152.13,152.12,0.063]
[1745562005275,8.73005582,152.13,152.12,0.063]
[1745562008169,1.64355964,152.13,152.12,0.063]
[1745562009182,1.64359652,152.17,152.12,0.063]
[1745562009473,7.08649618,152.16,152.12,0.063]
[1745562009651,8.72984856,152.15,152.12,0.063]
[1745562010156,7.08649618,152.14,152.12,0.063]
[1745562011977,7.08649618,152.15,152.12,0.063]
[1745562012151,1.64346464,152.14,152.12,0.063]
[1745562014078,8.72996082,152.14,152.12,0.063]
[1745562019288,1.64346464,152.14,152.12,0.063]
[1745562019889,7.08649618,152.15,152.12,0.063]
[1745562020092,1.64346317,152.14,152.12,0.063]
[1745562024904,8.72995935,152.14,152.12,0.063]
[1745562026563,1.64346317,152.14,152.12,0.063]
[1745562026765,7.08649618,152.18,152.13,7.08649618]
[1745562026990,1.64316702,152.17,152.13,7.08649618]
[1745562028988,1.64316702,152.17,152.14,2.43222286]
[1745562029303,8.7296632,152.17,152.14,2.43222286]
[1745562029875,8.7296632,152.17,152.12,8.77129618]
[1745562031003,7.08649618,152.16,152.13,2.43221123]
[1745562032192,7.08649618,152.16,152.12,7.14949618]
[1745562032598,1.64325121,152.15,152.12,7.14949618]
[1745562032898,7.08649618,152.16,152.12,7.14949618]
[1745562032899,8.72978069,152.16,152.12,7.14949618]
[1745562033101,8.72978069,152.16,152.13,2.4323648]
[1745562033678,8.72978069,152.16,152.14,2.4323648]
[1745562033978,7.08649618,152.16,152.14,2.4323648]
[1745562034903,7.08649618,152.16,152.13,2.4323648]
[1745562035080,1.64327643,152.15,152.13,2.4323648]
[1745562035695,1.64328314,152.15,152.14,2.4323648]
[1745562036089,8.72977901,152.16,152.14,2.4323648]